fUSD/lending_fUSD_20260506
["ID","MTS","AMOUNT","RATE_DAILY","PERIOD"]
[421720544,1778059848000,-219.72338,0.00039621,30]
[421720543,1778059848000,-151.0,0.00039621,30]
[421720542,1778059848000,-151.0,0.00039621,30]
[421720548,1778059848000,-223.442277,0.00039621,30]
[421720549,1778059848000,-486.250728,0.00039621,30]
[421720547,1778059848000,-978.68899,0.00039621,30]
[421720561,1778059848000,-1775.166357,0.00039621,28]
[421720551,1778059848000,-223.442277,0.00039621,30]
[421720539,1778059848000,-1135.869414,0.00039621,30]
[421720550,1778059848000,-978.68899,0.00039621,30]
[421720575,1778059849000,-37605.4109203,0.00030311,2]
[421720576,1778059849000,-164.11,0.00033,30]
[421720580,1778059849000,-404.13802102,0.00038227,2]
[421720582,1778059849000,-1309.36636604,0.00039621,30]
[421720578,1778059849000,-3772.22319857,0.00036656,30]
[421720577,1778059849000,-191.68,0.00036537,30]
[421720581,1778059849000,-463605.40034579,0.00039621,30]
[421720579,1778059849000,-1352.0,0.00037643,2]
[421720587,1778059849000,-4093.22926588,0.00039621,30]
[421720585,1778059849000,-11954.5000004,0.00039621,30]
[421720583,1778059849000,-1037.78279654,0.00039621,30]
[421720586,1778059849000,-1889.0052384,0.00039621,30]
[421720584,1778059849000,-3828.25395338,0.00039621,30]
[421720590,1778059862000,2500.0,0.0003003,120]
[421720589,1778059862000,2500.0,0.00027397,120]
[421720588,1778059862000,2500.0,0.00030137,120]
[421720591,1778059863000,2500.0,0.0003003,120]
[421720592,1778059863000,2500.0,0.0003003,120]
[421720597,1778059864000,300.0,0.0003003,120]
[421720595,1778059864000,300.0,0.0003003,120]
[421720594,1778059864000,300.0,0.00027397,120]
[421720593,1778059864000,300.0,0.00030137,120]
[421720596,1778059864000,300.0,0.0003003,120]
[421720598,1778059867000,203.30553174,0.00030137,120]
[421720599,1778059929000,23763.51682996,0.000148,2]
[421720601,1778059987000,897.538701,7.945e-05,2]
[421720604,1778060184000,32267.94472707,0.00012,10]
[421720605,1778060209000,172.54,0.00021929,30]
[421720606,1778060505000,152.0,0.0001164,2]
[421720615,1778060724000,160.0,0.0001204,2]
[421720622,1778060825000,-34093.66185124,0.000148,2]
[421720620,1778060825000,-250.0,0.00013913,2]
[421720621,1778060825000,-208.71,0.00014442,2]
[421720619,1778060825000,-250.0,0.00013508,2]
[421720617,1778060825000,-173.43189356,0.0001228,2]
[421720618,1778060825000,-250.0,0.0001282,2]
[421720616,1778060825000,-359.8665,0.0001228,2]
[421720652,1778061031000,-993.21706718,0.000148,2]
[421720657,1778061031000,-334.02485,0.000148,2]
[421720655,1778061031000,-310.55827694,0.000148,2]
[421720650,1778061031000,-8619.67861961,0.000148,2]
[421720684,1778061032000,-258.5,0.00016438,2]
[421720682,1778061032000,-262.3845194,0.00016131,2]
[421720679,1778061032000,-2500.0,0.00015842,2]
[421720678,1778061032000,-2500.0,0.00015842,2]
[421720681,1778061032000,-420.0,0.00016,2]
[421720676,1778061032000,-300.0,0.00015841,2]
[421720680,1778061032000,-208.71,0.00015962,2]
[421720673,1778061032000,-329.0,0.00015391,2]
[421720675,1778061032000,-250.0,0.00015582,2]
[421720665,1778061032000,-22158.52473774,0.000148,2]
[421720671,1778061032000,-151.0,0.00015202,2]
[421720672,1778061032000,-258.04104234,0.00015202,2]
[421720670,1778061032000,-152.0,0.00015202,2]
[421720669,1778061032000,-150.0,0.00015202,2]
[421720667,1778061032000,-151.0,0.00015202,2]
[421720692,1778061032000,-208.71,0.00018242,2]
[421720666,1778061032000,-208.71,0.00015202,2]
[421720668,1778061032000,-151.0,0.00015202,2]
[421720664,1778061032000,-76926.92498135,0.000148,2]
[421720674,1778061032000,-2500.0,0.00015392,2]
[421720693,1778061032000,-1732.5652927,0.00018254,2]
[421720677,1778061032000,-2500.0,0.00015842,2]
[421720685,1778061032000,-208.71,0.00016722,2]
[421720694,1778061032000,-2589.68,0.00018385,2]
[421720708,1778061032000,-200.0,0.0001933,2]
[421720709,1778061032000,-780.67245693,0.00019411,2]
[421720707,1778061032000,-177.78388948,0.00019289,2]
[421720706,1778061032000,-452.34929037,0.00019289,2]
[421720704,1778061032000,-466.7018656,0.00019289,2]
[421720699,1778061032000,-19864.41,0.0001872,2]
[421720705,1778061032000,-494.97495455,0.00019289,2]
[421720703,1778061032000,-200.0,0.00019121,2]
[421720701,1778061032000,-587.0,0.00018942,2]
[421720700,1778061032000,-2000.0,0.00018874,2]
[421720702,1778061032000,-208.71,0.00019002,2]
[421720696,1778061032000,-300.0,0.00018719,2]
[421720695,1778061032000,-258.5,0.0001841,2]
[421720687,1778061032000,-2500.0,0.00016722,2]
[421720690,1778061032000,-230.19,0.00017791,2]
[421720691,1778061032000,-500.0,0.00018178,2]
[421720686,1778061032000,-250.0,0.00016722,2]
[421720688,1778061032000,-420.0,0.00017322,2]
[421720689,1778061032000,-208.71,0.00017482,2]
[421720698,1778061032000,-728.28,0.0001872,2]
[421720683,1778061032000,-150.99,0.00016331,2]
[421720735,1778061041000,-823.0,0.00020713,2]
[421720736,1778061041000,-172.54,0.00020885,2]
[421720739,1778061041000,-400.0,0.00021,2]
[421720733,1778061041000,-208.71,0.00020522,2]
[421720737,1778061041000,-445.0,0.00021,2]
[421720753,1778061041000,-177.8796379,0.00022691,2]
[421720738,1778061041000,-153.0,0.00021,2]
[421720743,1778061041000,-5000.0,0.00021918,2]
[421720754,1778061041000,-202.64968375,0.00022691,2]
[421720734,1778061041000,-500.0,0.00020525,2]
[421720742,1778061041000,-208.71,0.00021283,2]
[421720740,1778061041000,-173.96,0.00021085,2]
[421720732,1778061041000,-258.5,0.00020381,2]
[421720724,1778061041000,-208.71,0.00019762,2]
[421720741,1778061041000,-2000.0,0.00021233,2]
[421720731,1778061041000,-500.0,0.00020306,2]
[421720726,1778061041000,-3783.5366,0.00019905,2]
[421720729,1778061041000,-153.0,0.0002,2]
[421720725,1778061041000,-172.54,0.0001984,2]
[421720727,1778061041000,-2500.0,0.00019964,2]
[421720728,1778061041000,-445.0,0.0002,2]
[421720722,1778061041000,-160.0,0.00019645,2]
[421720720,1778061041000,-657.40754307,0.00019411,2]
[421720723,1778061041000,-214.60306816,0.00019645,2]
[421720721,1778061041000,-4187.11,0.00019626,2]
[421720744,1778061041000,-445.0,0.00022,2]
[421720730,1778061041000,-400.0,0.0002,2]
[421720749,1778061041000,-178.27710914,0.00022407,2]
[421720767,1778061041000,-11428.97270884,0.00022691,2]
[421720746,1778061041000,-400.0,0.00022,2]
[421720748,1778061041000,-258.5,0.00022353,2]
[421720802,1778061041000,-155.02,0.00024658,2]
[421720800,1778061041000,-150.0,0.00024658,2]
[421720786,1778061041000,-163.7161496,0.00024,2]
[421720801,1778061041000,-154.87,0.00024658,2]
[421720788,1778061041000,-400.0,0.00024,2]
[421720784,1778061041000,-445.0,0.00024,2]
[421720782,1778061041000,-2000.0,0.00023592,2]
[421720798,1778061041000,-204.16,0.00024658,2]
[421720796,1778061041000,-1000.0,0.00024658,2]
[421720790,1778061041000,-2363.65,0.00024174,2]
[421720792,1778061041000,-208.71,0.00024323,2]
[421720779,1778061041000,-208.71,0.00023563,2]
[421720794,1778061041000,-258.5,0.00024324,2]
[421720777,1778061041000,-500.0,0.00023111,2]
[421720751,1778061041000,-178.27710913,0.00022407,2]
[421720775,1778061041000,-400.0,0.00023,2]
[421720745,1778061041000,-153.0,0.00022,2]
[421720750,1778061041000,-178.27710913,0.00022407,2]
[421720752,1778061041000,-550.4003621,0.00022691,2]
[421720755,1778061041000,-3408.81705554,0.00022691,2]
[421720747,1778061041000,-208.71,0.00022043,2]
[421720757,1778061041000,-4179.76464483,0.00022691,2]
[421720756,1778061041000,-644.20590704,0.00022691,2]
[421720771,1778061041000,-445.0,0.00023,2]
[421720773,1778061041000,-153.0,0.00023,2]
[421720769,1778061041000,-208.71,0.00022803,2]
[421720803,1778061041000,-500.0,0.00024899,2]
[421720807,1778061042000,-500.0,0.00024899,2]
[421720804,1778061042000,-500.0,0.00024899,2]
[421720811,1778061042000,-500.0,0.00024899,2]
[421720810,1778061042000,-500.0,0.00024899,2]
[421720805,1778061042000,-500.0,0.00024899,2]
[421720806,1778061042000,-500.0,0.00024899,2]
[421720813,1778061042000,-500.0,0.00024899,2]
[421720812,1778061042000,-500.0,0.00024899,2]
[421720809,1778061042000,-500.0,0.00024899,2]
[421720808,1778061042000,-500.0,0.00024899,2]
[421720815,1778061042000,-565.65299155,0.00024899,2]
[421720823,1778061042000,-500.0,0.00024899,2]
[421720816,1778061042000,-500.0,0.00024899,2]
[421720817,1778061042000,-500.0,0.00024899,2]
[421720818,1778061042000,-500.0,0.00024899,2]
[421720819,1778061042000,-500.0,0.00024899,2]
[421720821,1778061042000,-500.0,0.00024899,2]
[421720820,1778061042000,-500.0,0.00024899,2]
[421720824,1778061042000,-800.0,0.000249,9]
[421720822,1778061042000,-500.0,0.00024899,2]
[421720826,1778061042000,-37568.97302862,0.000249,2]
[421720827,1778061042000,-311.22140808,0.000249,2]
[421720825,1778061042000,-1094.02398072,0.000249,2]
[421720844,1778061043000,-500.0,0.00024999,2]
[421720847,1778061043000,-500.0,0.00024999,2]
[421720845,1778061043000,-413.10290185,0.00024999,2]
[421720841,1778061043000,-150.0,0.00024973,2]
[421720843,1778061043000,-167.39044235,0.00024999,2]
[421720836,1778061043000,-150.0,0.00024323,2]
[421720839,1778061043000,-429.71330877,0.000249,2]
[421720840,1778061043000,-154.87,0.00024962,7]
[421720838,1778061043000,-1140.85691337,0.000249,2]
[421720837,1778061043000,-750.05641542,0.000249,2]
[421720842,1778061043000,-155.02,0.0002498,7]
[421720846,1778061043000,-500.0,0.00024999,2]
[421720852,1778061043000,-602.72826879,0.00024999,2]
[421720850,1778061043000,-196.83014047,0.00024999,2]
[421720861,1778061043000,-328116.90078295,0.00025,20]
[421720859,1778061043000,-461.0,0.00025,2]
[421720860,1778061043000,-18384.09631879,0.00025,20]
[421720858,1778061043000,-500.0,0.00024999,2]
[421720857,1778061043000,-500.0,0.00024999,2]
[421720848,1778061043000,-333.6813745,0.00024999,2]
[421720856,1778061043000,-500.0,0.00024999,2]
[421720849,1778061043000,-166.3186255,0.00024999,2]
[421720851,1778061043000,-500.0,0.00024999,2]
[421720853,1778061043000,-500.0,0.00024999,2]
[421720855,1778061043000,-500.0,0.00024999,2]
[421720882,1778061046000,-300.0,0.00025479,2]
[421720875,1778061046000,-208.71,0.00025083,2]
[421720885,1778061046000,-300.0,0.00025479,2]
[421720887,1778061046000,-300.0,0.00025479,2]
[421720888,1778061046000,-300.0,0.00025479,2]
[421720889,1778061046000,-300.0,0.00025479,2]
[421720892,1778061046000,-300.0,0.00025479,2]
[421720897,1778061046000,-300.0,0.00025479,2]
[421720890,1778061046000,-300.0,0.00025479,2]
[421720898,1778061046000,-300.0,0.00025479,2]
[421720899,1778061046000,-300.0,0.00025479,2]
[421720891,1778061046000,-300.0,0.00025479,2]
[421720895,1778061046000,-300.0,0.00025479,2]
[421720893,1778061046000,-300.0,0.00025479,2]
[421720896,1778061046000,-300.0,0.00025479,2]
[421720879,1778061046000,-500.0,0.00025479,2]
[421720877,1778061046000,-155.02,0.00025302,30]
[421720883,1778061046000,-300.0,0.00025479,2]
[421720866,1778061046000,-4712.32498366,0.000249,2]
[421720865,1778061046000,-564.2476825,0.00021958,2]
[421720869,1778061046000,-2687.05721403,0.00025,20]
[421720868,1778061046000,-3392.4781355,0.00025,20]
[421720867,1778061046000,-2197.5218645,0.000249,2]
[421720870,1778061046000,-719.23599909,0.00025,20]
[421720872,1778061046000,-419.0,0.00025,2]
[421720871,1778061046000,-214410.23154964,0.00025,20]
[421720874,1778061046000,-4274.0,0.00025,2]
[421720873,1778061046000,-150.0,0.00025,2]
[421720876,1778061046000,-154.87,0.00025266,30]
[421720886,1778061046000,-300.0,0.00025479,2]
[421720894,1778061046000,-300.0,0.00025479,2]
[421720878,1778061046000,-250.30857367,0.00025407,2]
[421720884,1778061046000,-300.0,0.00025479,2]
[421720880,1778061046000,-300.0,0.00025479,2]
[421720901,1778061046000,-300.0,0.00025479,2]
[421720881,1778061046000,-300.0,0.00025479,2]
[421720909,1778061046000,-300.0,0.00025479,2]
[421720920,1778061046000,-300.0,0.00025479,2]
[421720919,1778061046000,-300.0,0.00025479,2]
[421720921,1778061046000,-300.0,0.00025479,2]
[421720927,1778061046000,-300.0,0.00025479,2]
[421720930,1778061046000,-300.0,0.00025479,2]
[421720934,1778061046000,-300.0,0.00025479,2]
[421720935,1778061046000,-300.0,0.00025479,2]
[421720929,1778061046000,-300.0,0.00025479,2]
[421720938,1778061046000,-300.0,0.00025479,2]
[421720939,1778061046000,-300.0,0.00025479,2]
[421720931,1778061046000,-300.0,0.00025479,2]
[421720937,1778061046000,-300.0,0.00025479,2]
[421720933,1778061046000,-300.0,0.00025479,2]
[421720932,1778061046000,-300.0,0.00025479,2]
[421720911,1778061046000,-300.0,0.00025479,2]
[421720924,1778061046000,-300.0,0.00025479,2]
[421720922,1778061046000,-300.0,0.00025479,2]
[421720936,1778061046000,-300.0,0.00025479,2]
[421720928,1778061046000,-300.0,0.00025479,2]
[421720912,1778061046000,-300.0,0.00025479,2]
[421720923,1778061046000,-300.0,0.00025479,2]
[421720900,1778061046000,-300.0,0.00025479,2]
[421720914,1778061046000,-300.0,0.00025479,2]
[421720910,1778061046000,-300.0,0.00025479,2]
[421720902,1778061046000,-300.0,0.00025479,2]
[421720904,1778061046000,-300.0,0.00025479,2]
[421720903,1778061046000,-300.0,0.00025479,2]
[421720913,1778061046000,-300.0,0.00025479,2]
[421720905,1778061046000,-300.0,0.00025479,2]
[421720915,1778061046000,-300.0,0.00025479,2]
[421720917,1778061046000,-300.0,0.00025479,2]
[421720918,1778061046000,-300.0,0.00025479,2]
[421720916,1778061046000,-300.0,0.00025479,2]
[421720925,1778061046000,-300.0,0.00025479,2]
[421720907,1778061046000,-300.0,0.00025479,2]
[421720926,1778061046000,-300.0,0.00025479,2]
[421720979,1778061047000,-500.0,0.00026274,2]
[421720982,1778061047000,-208.71,0.00026603,2]
[421720980,1778061047000,-258.5,0.00026296,2]
[421720978,1778061047000,-500.0,0.00026274,2]
[421720974,1778061047000,-2363.65,0.00025786,2]
[421720970,1778061047000,-154.87,0.00025571,2]
[421720972,1778061047000,-155.02,0.00025624,2]
[421720977,1778061047000,-350.0,0.00026068,2]
[421720967,1778061047000,-300.0,0.00025479,2]
[421720981,1778061047000,-40200.82107425,0.00026567,2]
[421720975,1778061047000,-208.71,0.00025843,2]
[421720976,1778061047000,-2000.0,0.00025951,2]
[421720985,1778061047000,-550.0,0.00027164,2]
[421720991,1778061047000,-500.0,0.00027396,2]
[421720984,1778061047000,-502.0,0.00027137,2]
[421720986,1778061047000,-1094.02398066,0.00027219,2]
[421720987,1778061047000,-500.0,0.00027299,2]
[421720988,1778061047000,-477.68631403,0.000273,30]
[421720990,1778061047000,-500.0,0.00027396,2]
[421720993,1778061047000,-410.21909694,0.00027397,2]
[421720992,1778061047000,-159.64232622,0.00027397,2]
[421720989,1778061047000,-208.71,0.00027363,2]
[421720998,1778061047000,-450.0,0.0002752,2]
[421720994,1778061047000,-1500.0,0.00027397,2]
[421720997,1778061047000,-204.16,0.00027397,2]
[421720971,1778061047000,-155.02,0.00025624,2]
[421720983,1778061047000,-450.0,0.00026616,2]
[421720969,1778061047000,-250.0,0.00025521,2]
[421720951,1778061047000,-300.0,0.00025479,2]
[421720966,1778061047000,-300.0,0.00025479,2]
[421720940,1778061047000,-300.0,0.00025479,2]
[421720941,1778061047000,-300.0,0.00025479,2]
[421720942,1778061047000,-300.0,0.00025479,2]
[421720943,1778061047000,-300.0,0.00025479,2]
[421720944,1778061047000,-300.0,0.00025479,2]
[421720945,1778061047000,-300.0,0.00025479,2]
[421720946,1778061047000,-300.0,0.00025479,2]
[421720947,1778061047000,-300.0,0.00025479,2]
[421720949,1778061047000,-300.0,0.00025479,2]
[421720948,1778061047000,-300.0,0.00025479,2]
[421720950,1778061047000,-300.0,0.00025479,2]
[421720952,1778061047000,-300.0,0.00025479,2]
[421720973,1778061047000,-500.0,0.00025777,2]
[421720953,1778061047000,-300.0,0.00025479,2]
[421720958,1778061047000,-300.0,0.00025479,2]
[421720959,1778061047000,-300.0,0.00025479,2]
[421720960,1778061047000,-300.0,0.00025479,2]
[421720956,1778061047000,-300.0,0.00025479,2]
[421720954,1778061047000,-300.0,0.00025479,2]
[421720961,1778061047000,-300.0,0.00025479,2]
[421720955,1778061047000,-300.0,0.00025479,2]
[421720963,1778061047000,-300.0,0.00025479,2]
[421720964,1778061047000,-300.0,0.00025479,2]
[421720962,1778061047000,-300.0,0.00025479,2]
[421720995,1778061047000,-214.60306816,0.00027397,10]
[421720968,1778061047000,-300.0,0.00025479,2]
[421720957,1778061047000,-300.0,0.00025479,2]
[421720996,1778061047000,-273.03,0.00027397,2]
[421720965,1778061047000,-300.0,0.00025479,2]
[421721003,1778061047000,-477.68631401,0.00028001,30]
[421721024,1778061047000,-150.89,0.00029012,7]
[421721030,1778061047000,-155.01,0.00029136,2]
[421721032,1778061047000,-155.01,0.00029184,7]
[421721033,1778061047000,-150.89,0.00029188,30]
[421721034,1778061047000,-151.01,0.00029232,2]
[421721037,1778061047000,-1094.02398066,0.00029538,2]
[421721043,1778061047000,-1111.11,0.0003005,30]
[421721039,1778061047000,-1111.11,0.0003,30]
[421721041,1778061047000,-1111.11,0.00030025,30]
[421721042,1778061047000,-1000.0,0.0003003,14]
[421721040,1778061047000,-502.0,0.0003002,5]
[421721044,1778061047000,-1111.11,0.00030075,30]
[421721031,1778061047000,-150.89,0.00029144,7]
[421721047,1778061047000,-2074.97031926,0.00030132,2]
[421721048,1778061047000,-204.16,0.00030137,2]
[421721045,1778061047000,-1111.11,0.000301,30]
[421721038,1778061047000,-40200.82107425,0.000299,2]
[421721049,1778061047000,-155.26,0.00030137,2]
[421721051,1778061047000,-1111.11,0.0003015,30]
[421721050,1778061047000,-150.0,0.00030137,30]
[421721052,1778061047000,-1111.11,0.00030175,30]
[421721057,1778061047000,-258.5,0.00030239,2]
[421721054,1778061047000,-2074.97031926,0.00030185,2]
[421721055,1778061047000,-1111.11,0.000302,30]
[421721053,1778061047000,-2074.97031926,0.00030183,2]
[421721056,1778061047000,-214.60306816,0.000302,30]
[421721046,1778061047000,-1111.11,0.00030125,30]
[421721028,1778061047000,-155.01,0.00029088,30]
[421721000,1778061047000,-500.0,0.000278,7]
[421721029,1778061047000,-150.89,0.000291,2]
[421721002,1778061047000,-266.83,0.00028,2]
[421721010,1778061047000,-150.89,0.00028747,7]
[421720999,1778061047000,-500.0,0.00027712,5]
[421721001,1778061047000,-266.83,0.00028,2]
[421721004,1778061047000,-502.0,0.00028098,3]
[421721005,1778061047000,-208.71,0.00028123,2]
[421721008,1778061047000,-2000.0,0.00028311,2]
[421721027,1778061047000,-502.0,0.00029059,4]
[421721006,1778061047000,-40200.82107425,0.00028233,2]
[421721009,1778061047000,-155.01,0.00028702,2]
[421721012,1778061047000,-150.89,0.00028791,30]
[421721022,1778061047000,-150.89,0.00028967,2]
[421721023,1778061047000,-155.01,0.00028991,2]
[421721007,1778061047000,-258.5,0.00028267,2]
[421721014,1778061047000,-150.89,0.00028835,2]
[421721011,1778061047000,-155.01,0.0002875,7]
[421721036,1778061047000,-150.0,0.00029534,2]
[421721035,1778061047000,-155.12,0.00029232,30]
[421721025,1778061047000,-155.01,0.00029039,7]
[421721020,1778061047000,-150.89,0.00028923,30]
[421721019,1778061047000,-274.0,0.00028904,2]
[421721026,1778061047000,-150.89,0.00029056,30]
[421721017,1778061047000,-208.71,0.00028883,2]
[421721015,1778061047000,-155.01,0.00028846,2]
[421721013,1778061047000,-155.01,0.00028798,30]
[421721016,1778061047000,-150.89,0.00028879,7]
[421721018,1778061047000,-155.01,0.00028895,7]
[421721021,1778061047000,-155.01,0.00028943,30]
[421721100,1778061048000,-153.0,0.00032231,30]
[421721108,1778061048000,-270.0,0.0003224,2]
[421721095,1778061048000,-1294.52522,0.00032,120]
[421721092,1778061048000,-502.0,0.00031943,7]
[421721093,1778061048000,-1542.43548145,0.00032,120]
[421721094,1778061048000,-1453.13525638,0.00032,120]
[421721096,1778061048000,-160.0,0.000322,30]
[421721098,1778061048000,-158.0,0.00032231,30]
[421721091,1778061048000,-1094.02398066,0.00031857,2]
[421721090,1778061048000,-1247.93976394,0.000318,2]
[421721097,1778061048000,-258.5,0.0003221,5]
[421721099,1778061048000,-156.0,0.00032231,30]
[421721112,1778061048000,-500.0,0.00032273,2]
[421721103,1778061048000,-153.0,0.00032232,30]
[421721104,1778061048000,-151.0,0.00032232,30]
[421721105,1778061048000,-158.0,0.00032232,30]
[421721106,1778061048000,-400.0,0.00032232,30]
[421721102,1778061048000,-445.0,0.00032231,30]
[421721101,1778061048000,-156.0,0.00032231,30]
[421721110,1778061048000,-500.0,0.00032247,7]
[421721107,1778061048000,-264.0,0.0003224,2]
[421721111,1778061048000,-96821.9094367,0.00032248,2]
[421721113,1778061048000,-3000.0,0.000323,30]
[421721115,1778061048000,-29743.5,0.000323,7]
[421721114,1778061048000,-348.65,0.000323,7]
[421721088,1778061048000,-1247.93976394,0.000318,2]
[421721109,1778061048000,-500.0,0.00032247,2]
[421721089,1778061048000,-1247.93976394,0.000318,2]
[421721070,1778061048000,-156.0,0.00031231,30]
[421721083,1778061048000,-2000.0,0.00031507,30]
[421721116,1778061048000,-150.0,0.00032562,2]
[421721059,1778061048000,-184.97,0.00030411,120]
[421721061,1778061048000,-2074.97031926,0.00030505,2]
[421721060,1778061048000,-524.0,0.000305,5]
[421721062,1778061048000,-2074.97031926,0.00030677,2]
[421721058,1778061048000,-2074.97031926,0.00030393,2]
[421721065,1778061048000,-502.0,0.00030982,6]
[421721064,1778061048000,-2074.97031926,0.00030867,2]
[421721066,1778061048000,-2074.97031926,0.00030997,2]
[421721063,1778061048000,-2074.97031926,0.00030861,2]
[421721069,1778061048000,-158.0,0.00031231,30]
[421721067,1778061048000,-150.0,0.00031011,2]
[421721068,1778061048000,-2074.97031926,0.00031161,2]
[421721072,1778061048000,-156.0,0.00031231,30]
[421721073,1778061048000,-445.0,0.00031231,30]
[421721071,1778061048000,-153.0,0.00031231,30]
[421721076,1778061048000,-151.0,0.00031232,30]
[421721075,1778061048000,-153.0,0.00031232,30]
[421721078,1778061048000,-400.0,0.00031232,30]
[421721081,1778061048000,-2074.97031926,0.00031448,2]
[421721079,1778061048000,-177.96,0.00031406,2]
[421721084,1778061048000,-40200.82107425,0.00031567,2]
[421721085,1778061048000,-2074.97031926,0.00031659,2]
[421721080,1778061048000,-266.83,0.00031438,2]
[421721086,1778061048000,-2074.97031926,0.00031665,2]
[421721082,1778061048000,-1000.0,0.000315,7]
[421721077,1778061048000,-153.0,0.00031232,30]
[421721087,1778061048000,-2074.97031926,0.00031774,2]
[421721119,1778061048000,-500.0,0.00032603,2]
[421721074,1778061048000,-168.0,0.00031231,30]
[421721118,1778061048000,-500.0,0.00032603,2]
[421721157,1778061048000,-500.0,0.00032603,2]
[421721146,1778061048000,-500.0,0.00032603,2]
[421721158,1778061048000,-500.0,0.00032603,2]
[421721151,1778061048000,-500.0,0.00032603,2]
[421721148,1778061048000,-500.0,0.00032603,2]
[421721152,1778061048000,-500.0,0.00032603,2]
[421721150,1778061048000,-500.0,0.00032603,2]
[421721149,1778061048000,-500.0,0.00032603,2]
[421721160,1778061048000,-538.61110372,0.00032603,2]
[421721167,1778061048000,-500.0,0.00032821,2]
[421721159,1778061048000,-500.0,0.00032603,2]
[421721161,1778061048000,-9877.31023233,0.0003276,2]
[421721169,1778061048000,-1700.0,0.000329,12]
[421721166,1778061048000,-4980.0,0.000328,30]
[421721162,1778061048000,-150.0,0.0003276,2]
[421721168,1778061048000,-204.16,0.00032877,2]
[421721163,1778061048000,-7019.11716263,0.0003276,4]
[421721164,1778061048000,-1500.61886089,0.0003276,10]
[421721171,1778061048000,-1542.43548145,0.00033,120]
[421721176,1778061048000,-160.0,0.00033231,30]
[421721170,1778061048000,-502.0,0.00032904,8]
[421721173,1778061048000,-1294.52522,0.00033,120]
[421721174,1778061048000,-214.60306816,0.00033,7]
[421721172,1778061048000,-1453.13525638,0.00033,120]
[421721177,1778061048000,-156.0,0.00033231,30]
[421721175,1778061048000,-158.0,0.00033231,30]
[421721121,1778061048000,-500.0,0.00032603,2]
[421721154,1778061048000,-500.0,0.00032603,2]
[421721155,1778061048000,-500.0,0.00032603,2]
[421721165,1778061048000,-1507.5742088,0.0003276,10]
[421721156,1778061048000,-500.0,0.00032603,2]
[421721120,1778061048000,-500.0,0.00032603,2]
[421721153,1778061048000,-500.0,0.00032603,2]
[421721117,1778061048000,-500.0,0.00032602,120]
[421721123,1778061048000,-500.0,0.00032603,2]
[421721122,1778061048000,-517.59719864,0.00032603,2]
[421721131,1778061048000,-203.08154012,0.00032603,2]
[421721133,1778061048000,-500.0,0.00032603,2]
[421721125,1778061048000,-500.0,0.00032603,2]
[421721124,1778061048000,-500.0,0.00032603,2]
[421721127,1778061048000,-500.0,0.00032603,2]
[421721126,1778061048000,-359.26763731,0.00032603,2]
[421721129,1778061048000,-150.0,0.00032603,2]
[421721128,1778061048000,-500.0,0.00032603,2]
[421721132,1778061048000,-500.0,0.00032603,2]
[421721134,1778061048000,-500.0,0.00032603,2]